Cogmind - Beta 13 @@@ ROGUE MODE // 2024.04.02 @ 10:20:18 Player: Scringis Result: Destroyed self via exploding Nuclear Reactor Performance ------------- Evolutions (0) 0 Regions Visited (1) 200 Robots Destroyed (6) 30 Value Destroyed (180) 180 Prototype IDs (2) 40 Alien Tech Used (0) 0 Bonus (0) 0 TOTAL SCORE: 450 Bonus ------- None Cogmind --------- Core Integrity 0/250 Matter 165/300 Energy 100/100 System Corruption 3% Temperature Cool (0) Movement Core (100) Ox1 Location -10/Materials Parts ------- > --- POWER (1) -------- (None) > --- PROPULSION (2) --- (None) > --- UTILITY (2) ------ Small Storage Unit > --- WEAPON (2) ------- Light Assault Rifle > --- INVENTORY (8) ---- Ion Engine EM Pulse Gun Datajack Peak State ------------ > --- POWER ------------ Ion Engine > --- PROPULSION ------- Light Treads Light Treads > --- UTILITY ---------- Small Storage Unit > --- WEAPON ----------- Assault Rifle Light Assault Rifle > --- INVENTORY -------- EM Pulse Gun [Rating: 6] Favorites ----------- Power Ion Engine Engine Ion Engine Propulsion Light Treads Treads Light Treads Utility Small Storage Unit Storage Small Storage Unit Weapon Light Assault Rifle Ballistic Gun Light Assault Rifle Launcher Grenade Launcher Build | -11 -10 ------- Run | Yrd Mat Slots Evolved . | . . Power . | . . Propulsion . | . . Utility . | . . Weapon . | . . Parts Attached 12 | 6 6 Power 3 | 1 2 Engine 3 | 1 2 Core . | . . Reactor . | . . Propulsion 2 | 2 . Treads 2 | 2 . Leg . | . . Wheel . | . . Hover . | . . Flight . | . . Utility 1 | 1 . Device . | . . Storage 1 | 1 . Processor . | . . Hackware . | . . Protection . | . . Artifact . | . . Weapon 6 | 2 4 Energy Gun . | . . Energy Cannon . | . . Ballistic Gun 5 | 2 3 Ballistic Cannon . | . . Launcher 1 | . 1 Special Weapon . | . . Impact Weapon . | . . Slashing Weapon . | . . Piercing Weapon . | . . Special Melee Weapon . | . . Unidentified Prototypes . | . . Parts Lost 4 | . 4 Power 1 | . 1 Propulsion 1 | . 1 Utility . | . . Weapon 2 | . 2 Highest Loss Streak 4 | . 4 To Critical Strikes . | . . Average Slot Usage (%) 77 | . 77 Engine 13 | . 13 Treads 23 | . 23 Storage 14 | . 14 Ballistic Gun 24 | . 24 Naked Turns . | . . Heaviest Build 13 | 13 13 Greatest Support 40 | 40 40 Greatest Overweight (x) 3 | . 3 Average Overweight (x) . | . . Largest Inventory Capacity 8 | 8 8 Average Capacity 7 | 6 8 Most Carried 5 | 5 5 Average Carried 3 | 1 3 Final Capacity 8 | 8 8 Final Carried 3 | 1 3 Class Distribution -------------------- 100% | Mutant Dominant Class ---------------- Mutant | -10/Materials Resources | -11 -10 ----------- Run | Yrd Mat Matter Collected 290 | 162 128 Remotely . | . . Salvage Created 196 | . 196 Parts 8 | . 8 Haulers Intercepted . | . . Recyclers Shooed . | . . Parts Field Recycled . | . . Retrieved Matter . | . . Parts Self-Destructed . | . . Prevented . | . . Kills | -11 -10 ------- Run | Yrd Mat Combat Hostiles Destroyed 5 | . 5 Guns 5 | . 5 Classes Destroyed 3 | . 3 Worker 1 | . 1 Swarmer 1 | . 1 Grunt 4 | . 4 Best Kill Streak 2 | . 2 Combat Bots Only 1 | . 1 Max Kills in Single Turn 1 | . 1 Gunslinging . | . . Exploded . | . . Melee . | . . Uniques/NPCs Destroyed . | . . Combat | -11 -10 -------- Run | Yrd Mat Hostile Shots Fired 87 | . 87 Missed 27 | . 27 Damage Taken 803 | . 803 Core 292 | . 292 Absorbed by Shields . | . . Core Remaining (%) 100 | 100 . Volleys Fired 41 | . 41 Largest 2 | . 2 Hottest 50 | . 50 Shots Fired 63 | . 63 Gun 60 | . 60 Cannon . | . . Launcher 3 | . 3 Special . | . . Kinetic 60 | . 60 Thermal . | . . Explosive 3 | . 3 Electromagnetic . | . . Robot Hit Streak 7 | . 7 Robot Miss Streak 2 | . 2 Penetration Max . | . . Secondary Targets . | . . Shots Hit Robots 38 | . 38 Core Hits 16 | 1 15 Critical Kills . | . . Critical Parts Destroyed . | . . Critical Strikes . | . . Melee Attacks . | . . Impact . | . . Slashing . | . . Piercing . | . . Sneak Attacks . | . . Combat Hostiles . | . . Follow-up Attacks . | . . Damage Inflicted 633 | 9 624 Guns 386 | . 386 Cannons . | . . Explosions 236 | . 236 Melee . | . . Ramming 11 | 9 2 Kinetic 386 | . 386 Thermal . | . . Explosive 236 | . 236 Electromagnetic . | . . Impact . | . . Slashing . | . . Piercing . | . . Highest Corruption 3 | . 3 Average Corruption 2 | . 2 Corruption Purged . | . . Corruption Blocked . | . . Effects 6 | . 6 Message Errors 1 | . 1 Matter Fused 1 | . 1 Data Loss (minor) 2 | . 2 Misfires 1 | . 1 Alerts 1 | . 1 Overload Shots . | . . Overflow Damage 4 | . 4 Projectiles . | . . Explosions 4 | . 4 Melee . | . . Knockbacks . | . . Impact . | . . Kinetic . | . . Secondary . | . . Self-Inflicted Damage 132 | . 132 Shots 3 | . 3 Rammed 2 | 1 1 Targets Rammed 2 | 1 1 Kicked . | . . Crushed . | . . Highest Temperature 46 | . 46 Average Temperature 14 | . 14 Received Heat Transfer 336 | . 336 Siege Activations . | . . Robots Corrupted . | . . Combat Hostiles . | . . Parts Fried . | . . Impact Corruptions . | . . Robots Melted . | . . Combat Hostiles . | . . Parts Melted . | . . Heat Transferred . | . . Parts Sabotaged . | . . Parts Stolen . | . . Parts Stripped . | . . Power Chain Reactions . | . . Alert | -11 -10 ------- Run | Yrd Mat Peak Influence 115 | . 115 Initial . | . . Average 30 | . 35 Maximum Alert Level . | . . Low Security (%) 100 | 100 100 Level 1 . | . . Level 2 . | . . Level 3 . | . . Level 4 . | . . Level 5 . | . . High Security . | . . Max Security . | . . Squads Dispatched 2 | . 2 Investigation 2 | . 2 Extermination . | . . Reinforcement . | . . Assault . | . . Garrison . | . . Intercept . | . . Searches Triggered . | . . Construction Impeded . | . . Haulers Reinforced . | . . Active Scanning Responses . | . . Cargo Convoy Interrupts . | . . Stealth | -11 -10 --------- Run | Yrd Mat Distress Signals 3 | . 3 Communications Jammed . | . . Distress Signals . | . . Times Spotted 18 | . 18 Peak Tracking Total 6 | . 6 Tactical Retreats 1 | . 1 Traps | -11 -10 ------- Run | Yrd Mat Traps Triggered 6 | . 6 Indirectly . | . . Trap Hack Attempts . | . . Triggered . | . . Disarmed . | . . Reprogrammed . | . . Reused . | . . Traps Extracted . | . . Installed . | . . Triggered . | . . Machines | -11 -10 ---------- Run | Yrd Mat Machines Disabled 2 | . 2 Max in Single Turn 1 | . 1 Machines Repaired . | . . Machines Dismantled . | . . Machines Sabotaged . | . . Overloaded Fab Kills . | . . Hacking | -11 -10 --------- Run | Yrd Mat Machines Accessed 4 | . 4 Terminals 3 | . 3 Fabricators . | . . Repair Stations . | . . Recycling Units 1 | . 1 Scanalyzers . | . . Garrison Access . | . . Total Hacks 8 | . 8 Successful 4 | . 4 Failed 4 | . 4 Catastrophic 2 | . 2 Database Lockouts . | . . Manual . | . . Terminals 7 | . 7 Fabricators . | . . Repair Stations . | . . Recycling Units 1 | . 1 Scanalyzers . | . . Garrison Access . | . . Terminal Hacks 3 | . 3 Prototype ID Bank 1 | . 1 Alert Level 1 | . 1 Dispatch Records 1 | . 1 Fabricator Hacks . | . . Repair Station Hacks . | . . Recycling Unit Hacks 1 | . 1 Report Inventory 1 | . 1 Scanalyzer . | . . Garrison Access Hacks . | . . Unauthorized Hacks . | . . Terminals . | . . Fabricators . | . . Repair Stations . | . . Recycling Units . | . . Scanalyzers . | . . Garrison Access . | . . Data Cores Recovered . | . . Used . | . . Hacking Detections 2 | . 2 Full Trace Events 1 | . 1 Feedback Events . | . . Feedback Blocked . | . . Robot Schematics Acquired . | . . Robots Built . | . . Authchips . | . . Time . | . . Total Robot Build Rating . | . . Part Schematics Acquired . | . . Parts Built . | . . Authchips . | . . Time . | . . Total Part Build Rating . | . . Parts Repaired . | . . Time . | . . Parts Recycled . | . . Recycled Matter . | . . Retrieved Matter . | . . Retrieved Components . | . . Parts Scanalyzed . | . . Part Schematics Acquired . | . . Parts Damaged . | . . Bothacking | -11 -10 ------------ Run | Yrd Mat Used RIF Installer . | . . Robots Hacked . | . . Non-combat . | . . Combat . | . . Robot Hacks Applied . | . . Relay Couplers Released . | . . Fabnet Peak Effective % . | . . Robots Rewired . | . . Allies Hacked . | . . Hacks Repelled . | . . Allies | -11 -10 -------- Run | Yrd Mat Total Allies . | . . Largest Group . | . . Highest-Rated Group . | . . Highest-Rated Ally . | . . Total Orders . | . . Ally Attacks . | . . Total Damage . | . . Kills . | . . Allies Corrupted . | . . Allies Melted . | . . Intel | -11 -10 ------- Run | Yrd Mat Robot Analysis Total . | . . Derelict Logs Recovered . | . . Drone Launches . | . . Drone Recoveries . | . . Exploration | -11 -10 ------------- Run | Yrd Mat Turns Passed 822 | 100 722 Spaces Moved 435 | 60 375 Core 10 | 9 1 Treads 425 | 51 374 Legs . | . . Wheels . | . . Hover . | . . Flight . | . . Fastest Speed 50 | 50 160 Average Speed 157 | 143 160 Slowest Speed 200 | 160 200 Overloaded Moves . | . . Propulsion Burnouts . | . . Robots Hopped . | . . Cave-ins Triggered . | . . Exploration Rate (%) 32 | 5 59 Regions Visited 1 Branch Regions . Pre-discovered Areas . | . . Known Exits Taken . | . . Unknown Exits Taken 1 | 1 . Scrap Searched . | . . Spaces Dug . | . . Terrain Destroyed 20 | . 20 Melee . | . . Projectile . | . . AOE 20 | . 20 Terrain Rammed . | . . Walls Destroyed . | . . Machines Disabled . | . . Actions | -11 -10 --------- Run | Yrd Mat Total 517 | 75 442 Wait 11 | . 11 Move 435 | 60 375 Hop . | . . Pick Up 15 | 8 7 Fast Attach . | . . Attach 12 | 6 6 Detach 1 | . 1 Swap . | . . Drop 1 | 1 . Fire 41 | . 41 Melee . | . . Ram . | . . Kick . | . . Crush 1 | . 1 Escape Stasis . | . . Rewire . | . . Trap . | . . Miscellaneous . | . . Route ------- -11/Scrapyard -10/Materials (discovered 1 exit: [*Mat]) History --------- Turn | Location | Event 6 | -11/Scrapyard | Discovered new exit (range 15) 101 | -11/Scrapyard | Entered Materials 315 | -10/Materials | Build established: Mutant 340 | -10/Materials | Discovered new exit (range 16) 803 | -10/Materials | Core integrity fell below 50% 823 | -10/Materials | Destroyed self via exploding Nuclear Reactor Last Messages --------------- G-34 Mercenary destroyed. K-01 Serf collects debris. Assault Rifle destroyed. K-01 Serf collects debris. Destroyed Welding Torch. Electrolysis Chamber disabled. K-01 Serf destroyed. G-34 Mercenary destroyed. Lgt. Treads destroyed. Grenade Launcher destroyed. The unstable cave ceiling collapses. W-16 Scout sends out distress signal. G-34 Mercenary destroyed. Acquired 46 matter. System corrupted: FCS attempts to trigger Lgt. Assault Rifle. System corrupted: Lgt. Assault Rifle misfires. The unstable cave ceiling collapses. Ion Engine destroyed. Nuclear Reactor explodes. Map ----- +----------------------------------------------------+ | ?# """ #?????????????????????????????????? | | ?# " #?????????????????????????????????? | | ?# #????#?###????????????????????????? | | ?# #??? ???????????????????????? | | ?# #??? ????????????????????????? | | ?# #??? ????????????????????????? | | ?# #?? #?????????????????????????? | | ?# #?? #?????????????????????????? | | ?# #?? #?????????????????????????? | | ?# #?? #?????????????????????????? | | ?# ### #######???????????????????? | | ?# "Y" ???????????????????? | | ## """ ??????????????????? | | ??????????????????? | | ??????????????????? | | ##### #?????????????????????????? | | ###+######^ ##########?????????????????? | | [ # ^ # #?????????????????? | | """ """ # ^ """ # * T #?????????????????? | | """""""" # """ w #?????????????????? | | """"" # """ # ] #?????????????????? | | / # #?????????????????? | | ! # %== # #?????????????????? | | ####+####### #?????????????????? | | ######/### #?# +?????????????????? | | ????? ??# #?# g@! #?????????????????? | | ????# ???# #?##+#g#g# #?????????????????? | | ????#????# #??# # ??????????????????? | | ?????????# #??# #? =# #?????????????????? | | ?????????# #??# # !% #?????????????????? | | ?????????# #??# % ########?????????? | | ?????????# #??# = """????????? | | ?????????# #??# "Y"????????? | | ?????????#####+####??# ??????? | | ?????????????# #?????### ??????? | | ?????????????# ######### "" """ ??????? | | ?????????????# # "T" # """ """ ???????? | | ?????????????# # # """ """ ?? ???????? | | ????# ###### # / ??????? | | ????# # # ??????? | | ????# + ## #### ### ??????? | | ????# # """ #? #??? #???????????? | | ????# ######## """ #? #????? +??????????? | | ????# ????????# """ #? #?????? ???????????? | | ????#??????????# #? #???????????????????? | | ???????????????##########? #???????????????????? | | ?????????????????????????? #???????????????????? | | ?????????????????????????? #???????????????????? | | ???????????????????????????#???????????????????? | | ???????????????????????????????????????????????? | +----------------------------------------------------+ Best States ------------- Heat Dissipation 25 Energy Generation 10 Energy Capacity 250 Matter Stores 241 Matter Capacity 300 Sight Range 16 Terrain Scan Density 10 Evasion (%) 40 Recoil Reduction 2 Item Schematics ----------------- None Robot Schematics ------------------ None Fabricated ------------ Nothing Alien Tech Used ----------------- None Achievements -------------- None Challenges ------------ None Game ------ Seed DisposableCloakRedistributor Manual? 0 Play Time 00:07:48 Cumulative 5.8 hours Start 2024.04.02 @ 10:14:22 End 2024.04.02 @ 10:20:18 Sessions 1 Manual Loads 0 Difficulty Rogue Special Mode None Game No. 19 Rogue 19 Adventurer 0 Explorer 0 Win Type - Total 0 Types 0/0/0/0/0/0/0/0/0 Lore% 7 Gallery% 11 Achievement% 10 Wizard Run 0 Options --------- Layout 1 ASCII 0 Keyboard 0 Movement Arrows Keybinds 0 Fullscreen 1 Font 24/Smallcaps Map View 50x35 Zoom Use 0% Tactical HUD 0 Map Filters NONE Filters NONE Steam 1 RUN: a3e7ab89-41dd-4ac8-a83e-4402843d2e1d